Workbook

Sheet Summary
A3: Paragon Mortgages (No.17) PLC
A5: Information as at the Principal Determination Date | B5: 2012-12-31 | C5: 2013-03-28 | D5: 2013-06-28 | E5: 2013-09-30 | F5: 2013-12-31 | G5: 2014-03-31 | H5: 2014-06-30 | I5: 2014-09-30 | J5: 2014-12-31 | K5: 2015-03-31 | L5: 2015-06-30 | M5: 2015-09-30 | N5: 2015-12-31
A6: Mortgage Asset Balance | B6: 165000 | C6: 198329 | D6: 197434 | E6: 195823 | F6: 195164 | G6: 192480 | H6: 180806 | I6: 171602 | J6: 161971 | K6: 153388.9506 | L6: 144867.8431 | M6: 134027.0751 | N6: 0
A7: Pre Funding Reserve | B7: 34496 | C7: 0 | D7: 0 | E7: 0 | F7: 0 | G7: 0 | H7: 0 | I7: 0 | J7: 0 | K7: 0 | L7: 0 | M7: 0 | N7: 0
A8: Retained Available Redemption Funds for the funding of future Discretionary Further Advances | B8: 100 | C8: 434 | D8: 500 | E8: 100 | F8: 100 | G8: 100 | H8: 0 | I8: 0 | J8: 0 | K8: 0 | L8: 0 | M8: 0 | N8: 0
A9: Total Assets | B9: =SUM(B6:B8) -> 199596 | C9: 198763 | D9: 197934 | E9: 195923 | F9: 195264 | G9: 192580 | H9: =SUM(H6:H8) -> 180806 | I9: 171602 | J9: =SUM(J6:J8) -> 161971 | K9: 153388.9506 | L9: =SUM(L6:L8) -> 144867.8431 | M9: =SUM(M6:M8) -> 134027.0751 | N9: =SUM(N6:N8) -> 0
A10: Total Notes | B10: =SUM(B11:B14) -> 199596 | C10: 198763 | D10: 197934 | E10: 195923 | F10: 195264 | G10: 192580 | H10: =SUM(H11:H14) -> 180806 | I10: 171602 | J10: =SUM(J11:J14) -> 161971 | K10: =SUM(K11:K14) -> 153389 | L10: =SUM(L11:L14)+1 -> 144868 | M10: =SUM(M11:M14) -> 134027 | N10: =SUM(N11:N14) -> 0
A11: Class A Notes | B11: 174596 | C11: 173763 | D11: 172934 | E11: 170923 | F11: 170264 | G11: 167580 | H11: 155806 | I11: 146602 | J11: 136971 | K11: 128389 | L11: 119867 | M11: 109027 | N11: 0
A12: Class B Notes | B12: 10500 | C12: 10500 | D12: 10500 | E12: 10500 | F12: 10500 | G12: 10500 | H12: 10500 | I12: 10500 | J12: 10500 | K12: 10500 | L12: 10500 | M12: 10500 | N12: 0
A13: Class C Notes | B13: 10000 | C13: 10000 | D13: 10000 | E13: 10000 | F13: 10000 | G13: 10000 | H13: 10000 | I13: 10000 | J13: 10000 | K13: 10000 | L13: 10000 | M13: 10000 | N13: 0
A14: Class D Notes | B14: 4500 | C14: 4500 | D14: 4500 | E14: 4500 | F14: 4500 | G14: 4500 | H14: 4500 | I14: 4500 | J14: 4500 | K14: 4500 | L14: 4500 | M14: 4500 | N14: 0
A15: Class B, C and D Notes as a % of the Total Notes | B15: =SUM(B12:B14)/B10 -> 0.1252530111 | C15: 0.1257779365 | D15: 0.1263047278 | E15: 0.1276011494 | F15: 0.1280317929 | G15: 0.1298161803 | H15: =SUM(H12:H14)/H10 -> 0.1382697477 | I15: 0.1456859477 | J15: =SUM(J12:J14)/J10 -> 0.154348618 | K15: 0.1629843079 | L15: =SUM(L12:L14)/L10 -> 0.1725708921 | M15: 0.1865295799 | N15: 0
A16: Lifetime Redemption Rate | B16: 0.0169 | C16: 0.0192 | D16: 0.0201 | E16: 0.0249 | F16: 0.0238 | G16: 0.0295 | H16: 0.0615 | I16: 0.0791 | J16: 0.0945 | K16: 0.1059 | L16: 0.116 | M16: 0.1305 | N16: 1
A17: Quarterly Redemption Rate | B17: 0.004 | C17: 0.0053 | D17: 0.0055 | E17: 0.0097 | F17: 0.005 | G17: 0.0144 | H17: 0.0626 | I17: 0.0515 | J17: 0.0561 | K17: 0.0545 | L17: 0.0568 | M17: 0.0767 | N17: 1
A18: Further Advances released in the quarter | B18: 40 | C18: 79 | D18: 111 | E18: 244 | F18: 214 | G18: 84 | H18: 361 | I18: 104 | J18: 0 | K18: 240 | L18: 199 | M18: 277 | N18: 0
A19: First Loss Fund Balance | B19: 6000 | C19: 6000 | D19: 6000 | E19: 6000 | F19: 6000 | G19: 6000 | H19: 6000 | I19: 6000 | J19: 6000 | K19: 6000 | L19: 6000 | M19: 6000 | N19: 0
A20: Liquidity Amount of the First Loss Fund (3% of the Class A, B and C Notes) | B20: =SUM(B11:B13)*3% -> 5852.88 | C20: 5827.89 | D20: 5803.02 | E20: 5742.69 | F20: 5722.92 | G20: 5642.4 | H20: =SUM(H11:H13)*3% -> 5289.18 | I20: 5013.06 | J20: =SUM(J11:J13)*3% -> 4724.13 | K20: 4466.67 | L20: =SUM(L11:L13)*3% -> 4211.01 | M20: 3885.81 | N20: =SUM(N11:N13)*3% -> 0
A21: Liquidity Excess Amount (First Loss Fund - Liquidity Amount) | B21: =B19-B20 -> 147.12 | C21: 172.11 | D21: 196.98 | E21: 257.31 | F21: 277.08 | G21: 357.6 | H21: =H19-H20 -> 710.82 | I21: 986.94 | J21: =J19-J20 -> 1275.87 | K21: 1533.33 | L21: =L19-L20 -> 1788.99 | M21: 2114.19 | N21: =N19-N20 -> 0
A22: First Loss Fund as a % of the Assets | B22: =+B19/B9 -> 0.03006072266 | C22: 0.03018670477 | D22: 0.03031313468 | E22: 0.03062427586 | F22: 0.03072763029 | G22: 0.03115588327 | H22: =+H19/H9 -> 0.03318473944 | I22: 0.03496462745 | J22: =+J19/J9 -> 0.03704366831 | K22: 0.03911624649 | L22: =+L19/L9 -> 0.04141705896 | M22: 0.04476707407 | N22: 0
A23: Opening PDL Balance | B23: 0 | C23: 0 | D23: 0 | E23: 0 | F23: 0 | G23: 0 | H23: 0 | I23: 0 | J23: 0 | K23: 0 | L23: 0 | M23: 0 | N23: 0
A24: Quarterly Losses | B24: =+B102+B137 -> 0 | C24: =+C102+C137 -> 0 | D24: 0 | E24: 0 | F24: 0 | G24: 0 | H24: 0 | I24: 0 | J24: =+J102+J137 -> 0 | K24: 0 | L24: =+L102+L137 -> 0 | M24: 0 | N24: =+N102+N137 -> 0
A25: Quarterly Loss Rate (annualised) | B25: =1-(1-B24/B9)^4 -> 0 | C25: 0 | D25: 0 | E25: 0 | F25: 0 | G25: 0 | H25: =1-(1-H24/H9)^4 -> 0 | I25: 0 | J25: =1-(1-J24/J9)^4 -> 0 | K25: 0 | L25: =1-(1-L24/L9)^4 -> 0 | M25: 0 | N25: 0
A26: PDL Replenishment made during the quarter (-ve = recoveries) | B26: 0 | C26: 0 | D26: 0 | E26: 0 | F26: 0 | G26: 0 | H26: 0 | I26: 0 | J26: 0 | K26: 0 | L26: 0 | M26: 0 | N26: 0
A27: Outstanding PDL at end of the quarter | B27: =B23+B24-B26 -> 0 | C27: 0 | D27: 0 | E27: 0 | F27: 0 | G27: 0 | H27: =H23+H24-H26 -> 0 | I27: 0 | J27: =J23+J24-J26 -> 0 | K27: 0 | L27: =L23+L24-L26 -> 0 | M27: 0 | N27: =N23+N24-N26 -> 0
A28: Spread Trap repayment in the quarter | B28: N/A | C28: N/A | D28: N/A | E28: N/A | F28: N/A | G28: N/A | H28: N/A | I28: N/A | J28: N/A | K28: N/A | L28: N/A | M28: N/A | N28: 0
A29: Spread % (WA Funding Rate less WA Interest Rate) | B29: 0.026 | C29: 0.0258 | D29: 0.026 | E29: 0.026 | F29: 0.0263 | G29: 0.027 | H29: 0.0282 | I29: 0.0288 | J29: 0.0298 | K29: 0.0304 | L29: 0.0307 | M29: 0.0304 | N29: 0
A30: Total Income as a % of the Assets | B30: 0.0107 | C30: 0.012 | D30: 0.0122 | E30: 0.0121 | F30: 0.0121 | G30: 0.0123 | H30: 0.0122 | I30: 0.0122 | J30: 0.0125 | K30: 0.0121 | L30: 0.0135 | M30: 0.0125 | N30: 0
A31: Quarterly surplus income to the Issuer | B31: 1151 | C31: 1208 | D31: 1187 | E31: 1156 | F31: 1159 | G31: 1230 | H31: 1202 | I31: 1100 | J31: 1084 | K31: 971 | L31: 1123 | M31: 905 | N31: 6837
A32: Surplus Income as a % of the Assets | B32: =+B31/200000 -> 0.005755 | C32: =+C31/B9 -> 0.006052225496 | D32: 0.005971936427 | E32: 0.005840330615 | F32: 0.005915589288 | G32: 0.006299164208 | H32: 0.006241561948 | I32: 0.006083868898 | J32: 0.006316942693 | K32: 0.005994900322 | L32: 0.007321257468 | M32: 0.00624707306 | N32: 0
A33: Losses as a % of the Assets | B33: =+B24/200000 -> 0 | C33: =+C24/B9 -> 0 | D33: 0 | E33: 0 | F33: 0 | G33: 0 | H33: 0 | I33: 0 | J33: 0 | K33: 0 | L33: 0 | M33: 0 | N33: 0
A34: Number of Properties in Possession | B34: =+B100+B135 -> 0 | C34: =+C100+C135 -> 0 | D34: 0 | E34: 0 | F34: 0 | G34: 0 | H34: 0 | I34: 0 | J34: =+J100+J135 -> 0 | K34: 0 | L34: =+L100+L135 -> 0 | M34: 0 | N34: =+N100+N135 -> 0
A35: Appointment of a Receiver of Rent | B35: =+B101+B136 -> 0 | C35: =+C101+C136 -> 0 | D35: 0 | E35: 0 | F35: 0 | G35: 0 | H35: 0 | I35: 0 | J35: =+J101+J136 -> 0 | K35: 0 | L35: =+L101+L136 -> 0 | M35: 0 | N35: =+N101+N136 -> 0
A36: Average Number of months (Possessions) in Arrears at the Sale Date | B36: 0 | C36: 0 | D36: 0 | E36: 0 | F36: 0 | G36: 0 | H36: 0 | I36: 0 | J36: 0 | K36: 0 | L36: 0 | M36: 0 | N36: 0
A37: Average Number of months (RoR) in Arrears at the Sale Date | B37: 0 | C37: 0 | D37: 0 | E37: 0 | F37: 0 | G37: 0 | H37: 0 | I37: 0 | J37: 0 | K37: 0 | L37: 0 | M37: 0 | N37: 0
A38: Arrears excluding Receiver of Rent and Possession Cases
A39: Performing Loans | B39: 1 | C39: 1 | D39: 1 | E39: 1 | F39: 1 | G39: 1 | H39: 1 | I39: 1 | J39: 1 | K39: 1 | L39: 1 | M39: 1 | N39: 0
A40: >1 to 2 months arrears | B40: 0 | C40: 0 | D40: 0 | E40: 0 | F40: 0 | G40: 0 | H40: 0 | I40: 0 | J40: 0 | K40: 0 | L40: 0 | M40: 0 | N40: 0
A41: >2 to 3 months arrears | B41: 0 | C41: 0 | D41: 0 | E41: 0 | F41: 0 | G41: 0 | H41: 0 | I41: 0 | J41: 0 | K41: 0 | L41: 0 | M41: 0 | N41: 0
A42: >3 months arrears | B42: 0 | C42: 0 | D42: 0 | E42: 0 | F42: 0 | G42: 0 | H42: 0 | I42: 0 | J42: 0 | K42: 0 | L42: 0 | M42: 0 | N42: 0
A43: Total | B43: =SUM(B39:B42) -> 1 | C43: 1 | D43: 1 | E43: 1 | F43: 1 | G43: 1 | H43: =SUM(H39:H42) -> 1 | I43: 1 | J43: 1 | K43: 1 | L43: 1 | M43: 1 | N43: 0
A44: Total Value of Arrears (£000's) | B44: 0 | C44: 0 | D44: 0 | E44: 0 | F44: 0 | G44: 0 | H44: 0 | I44: 2 | J44: 0 | K44: 0 | L44: 0 | M44: 3.051647209 | N44: 0
A45: Total Value of Arrears as a % of the Notes Issued (£200,000,000) | B45: =+B44/200000 -> 0 | C45: 0 | D45: 0 | E45: 0 | F45: 0 | G45: 0 | H45: =+H44/200000 -> 0 | I45: 1e-05 | J45: =+J44/200000 -> 0 | K45: 0 | L45: =+L44/200000 -> 0 | M45: 1.525823605e-05 | N45: =+N44/200000 -> 0
A47: Underlying Assets | B47: 2012-12-31 | C47: 2013-03-28 | D47: 2013-06-28 | E47: 2013-09-30 | F47: 2013-12-31 | G47: 2014-03-31 | H47: 2014-06-30 | I47: 2014-09-30 | J47: 2014-12-31 | K47: 2015-03-31 | L47: =+L5 -> 2015-06-30 | M47: =+M5 -> 2015-09-30 | N47: =+N5 -> 2015-12-31
A48: Weighted Average LTV | B48: 0.693 | C48: 0.6954 | D48: 0.6952 | E48: 0.6954 | F48: 0.6949 | G48: 0.6949 | H48: 0.6958 | I48: 0.6943210218 | J48: 0.694250027 | K48: 0.6925556938 | L48: 0.6911165283 | M48: 0.6893276436 | N48: 0
A49: Weighted Average Nationwide Indexed LTV | B49: 0.6888 | C49: 0.6973 | D49: 0.6949 | E49: 0.6622 | F49: 0.6627 | G49: 0.6496 | H49: 0.6405 | I49: 0.6029751961 | J49: 0.6042002412 | K49: 0.6046083345 | L49: 0.6045365677 | M49: 0.5882025186 | N49: 0
A50: Weighted Average Halifax Indexed LTV | B50: 0.6937 | C50: 0.6984 | D50: 0.6856 | E50: 0.665 | F50: 0.6537 | G50: 0.6481 | H50: 0.6364 | I50: 0.6126799252 | J50: 0.5932717473 | K50: 0.5982092901 | L50: 0.5821603878 | M50: 0.5566073994 | N50: 0
A51: % of Standard Variable Rate Mortgages | B51: 0.0042 | C51: 0.01 | D51: 0.0273 | E51: 0.0414 | F51: 0.1178 | G51: 0.1744 | H51: 0.327 | I51: 0.3895075916 | J51: 0.3981287691 | K51: 0.4019114513 | L51: 0.4272157021 | M51: 0.4377499606 | N51: 0
A52: % of Fixed Rate Mortgages (reverting to SVR) | B52: 0.186 | C52: 0.1476 | D52: 0.1354 | E52: 0.1205 | F52: 0.0609 | G52: 0.0617 | H52: 0.0133 | I52: 0.01402716583 | J52: 0.01485069435 | K52: 0.01567039751 | L52: 0 | M52: 0 | N52: 0
A53: % of Fixed Rate Mortgages (reverting to Libor plus a variable margin) | B53: 0.0682 | C53: 0.0917 | D53: 0.0912 | E53: 0.0924 | F53: 0.0933 | G53: 0.0938 | H53: 0.0999 | I53: 0.0426006383 | J53: 0.02504964396 | K53: 0.01478284017 | L53: 0 | M53: 0 | N53: 0
A54: % of Base Rate Mortgages | B54: 0 | C54: 0 | D54: 0 | E54: 0 | F54: 0 | G54: 0 | H54: 0 | I54: 0 | J54: 0 | K54: 0 | L54: 0 | M54: 0 | N54: 0
A55: % of Libor Linked Mortgages (reverting to SVR) | B55: 0.4163 | C55: 0.3452 | D55: 0.3404 | E55: 0.3394 | F55: 0.3218 | G55: 0.2643 | H55: 0.1311 | I55: 0.05598900285 | J55: 0.05253867116 | K55: 0.05377447912 | L55: 0.05691030447 | M55: 0.05791071917 | N55: 0
A56: % of Libor Linked Mortgages (reverting to Libor plus a variable margin) | B56: 0.3253 | C56: 0.4055 | D56: 0.4058 | E56: 0.4063 | F56: 0.4061 | G56: 0.4057 | H56: 0.4202 | I56: 0.3676727391 | J56: 0.2008204584 | K56: 0.0981967428 | L56: 0.07975877062 | M56: 0.08406122537 | N56: 0
A57: % of Libor Linked Mortgages plus a Variable Margin | B57: 0 | C57: 0 | D57: 0 | E57: 0 | F57: 0 | G57: 0 | H57: 0.0085 | I57: 0.1302028624 | J57: 0.3086117631 | K57: 0.4156640891 | L57: 0.4361152228 | M57: 0.4202780948 | N57: 0
A58: Weighted Average Loan Size | B58: 165995.59 | C58: 163503.27 | D58: 163438.44 | E58: 163049.96 | F58: 163180.55 | G58: 163256.83 | H58: 159863.72 | I58: 159185.5757 | J58: 157713.3211 | K58: 158623.527 | L58: 160074.9648 | M58: 158799.8521 | N58: 0
A59: Weighted Average Interest Rate | B59: 0.04622 | C59: 0.0459 | D59: 0.04608 | E59: 0.0461 | F59: 0.04652 | G59: 0.04728 | H59: 0.04854 | I59: 0.049465633 | J59: 0.05066645356 | K59: 0.05134490911 | L59: 0.0518227291 | M59: 0.05177579786 | N59: 0
A60: Weighted Average Maturity Date (years) | B60: 19.06 | C60: 19.01 | D60: 18.78 | E60: 18.54 | F60: 18.29 | G60: 18.07 | H60: 17.74 | I60: 17.49432901 | J60: 17.26187162 | K60: 16.99952444 | L60: 16.71608858 | M60: 16.41465587 | N60: 0
A61: Weighted Average Seasoning (months) | B61: 7.07 | C61: 8.7 | D61: 11.7 | E61: 14.64 | F61: 17.67 | G61: 20.61 | H61: 23.4 | I61: 26.35205232 | J61: 29.40387723 | K61: 32.43304298 | L61: 35.59539332 | M61: 38.76306682 | N61: 0
A62: % of Interest Only Mortgages (optional switching to repayment) | B62: 0.3529 | C62: 0.4491 | D62: 0.4485 | E62: 0.4496 | F62: 0.4505 | G62: 0.4502 | H62: 0.4763 | I62: 0.491654583 | J62: 0.4857403275 | K62: 0.4793844373 | L62: 0.4665375527 | M62: 0.4514092956 | N62: 0
A63: % of Interest Only Mortgages (mandatory switching to repayment) | B63: 0.5052 | C63: 0.4199 | D63: 0.42 | E63: 0.4174 | F63: 0.418 | G63: 0.4181 | H63: 0.3902 | I63: 0.3846235486 | J63: 0.382590834 | K63: 0.3854621124 | L63: 0.3975259428 | M63: 0.404808256 | N63: 0
A64: % of Interest Only Mortgages | B64: 0.0806 | C64: 0.0661 | D64: 0.0664 | E64: 0.0673 | F64: 0.067 | G64: 0.0669 | H64: 0.0641 | I64: 0.0552921712 | J64: 0.05301852904 | K64: 0.05124078318 | L64: 0.05290991289 | M64: 0.05718725229 | N64: 0
A65: % of Repayment Mortgages | B65: 0.0613 | C65: 0.0649 | D65: 0.0651 | E65: 0.0656 | F65: 0.0646 | G65: 0.0648 | H65: 0.0693 | I65: 0.06842969713 | J65: 0.07865030945 | K65: 0.08391266712 | L65: 0.08302659155 | M65: 0.08659519606 | N65: 0
A66: % of Mortgages in London | B66: 0.1909 | C66: 0.1903 | D66: 0.1911 | E66: 0.1926 | F66: 0.1918 | G66: 0.1896 | H66: 0.1768 | I66: 0.1697647658 | J66: 0.1596353343 | K66: 0.1589360425 | L66: 0.1606663603 | M66: 0.1488279578 | N66: 0
A67: % of Mortgages in the South East | B67: 0.2837 | C67: 0.2854 | D67: 0.2867 | E67: 0.2813 | F67: 0.2817 | G67: 0.281 | H67: 0.2713 | I67: 0.2706050844 | J67: 0.2686648392 | K67: 0.2661666718 | L67: 0.2683609645 | M67: 0.264692298 | N67: 0
A68: % of Owner Occupied Mortgages | B68: 0 | C68: 0 | D68: 0 | E68: 0 | F68: 0 | G68: 0 | H68: 0 | I68: 0 | J68: 0 | K68: 0 | L68: 0 | M68: 0 | N68: 0
A69: % of Investment Home Loans - Professional Landlords | B69: 0.6449 | C69: 0.6338 | D69: 0.6351 | E69: 0.6398 | F69: 0.6409 | G69: 0.643 | H69: 0.6529 | I69: 0.6646903072 | J69: 0.673013502 | K69: 0.6827628212 | L69: 0.6951184964 | M69: 0.7057351583 | N69: 0
A70: % of Investment Home Loans - Emerging Professional Landlords | B70: 0.3551 | C70: 0.3662 | D70: 0.3649 | E70: 0.3602 | F70: 0.3591 | G70: 0.357 | H70: 0.3471 | I70: 0.3353096928 | J70: 0.326986498 | K70: 0.3172371788 | L70: 0.3048815036 | M70: 0.2942648417 | N70: 0
A71: Weighted Average Interest Coverage Ratio (calculated at the origination date) | B71: 1.65 | C71: 1.659 | D71: 1.66 | E71: 1.66 | F71: 1.66 | G71: 1.66 | H71: 1.67 | I71: 1.666372194 | J71: 1.6739392 | K71: 1.677466667 | L71: 1.67432027 | M71: 1.672903804 | N71: 0
A72: % of Paragon Originated Assets | B72: 0.654 | C72: 0.6384 | D72: 0.6404 | E72: 0.6447 | F72: 0.6448 | G72: 0.647 | H72: 0.6549 | I72: 0.6710947989 | J72: 0.686838766 | K72: 0.6998891071 | L72: 0.7099881109 | M72: 0.7380878858 | N72: 0
A73: % of Mortgage Trust Originated Assets | B73: 0.346 | C73: 0.3616 | D73: 0.3596 | E73: 0.3553 | F73: 0.3552 | G73: 0.353 | H73: 0.3451 | I73: 0.3289052011 | J73: 0.313161234 | K73: 0.3001108929 | L73: 0.2900118891 | M73: 0.2619121142 | N73: 0
A75: Underlying Assets - Paragon Mortgages 2010 Paragon Originated Assets | B75: 2012-12-31 | C75: 2013-03-28 | D75: 2013-06-28 | E75: 2013-09-30 | F75: 2013-12-31 | G75: 2014-03-31 | H75: 2014-06-30 | I75: 2014-09-30 | J75: 2014-12-31 | K75: 2015-03-31 | L75: =+L47 -> 2015-06-30 | M75: =+M47 -> 2015-09-30 | N75: 2015-12-31
A76: Weighted Average LTV | B76: 0.694 | C76: 0.695 | D76: 0.6947 | E76: 0.6944 | F76: 0.694 | G76: 0.6946 | H76: 0.6943 | I76: 0.6932896561 | J76: 0.6928397987 | K76: 0.6914027129 | L76: 0.6901922007 | M76: 0.690245498 | N76: 0
A77: Weighted Average Nationwide Indexed LTV | B77: 0.6895 | C77: 0.6955 | D77: 0.6951 | E77: 0.6622 | F77: 0.6638 | G77: 0.6519 | H77: 0.6432 | I77: 0.6067435892 | J77: 0.606643901 | K77: 0.6077044604 | L77: 0.6078634873 | M77: 0.5909789981 | N77: 0
A78: Weighted Average Halifax Indexed LTV | B78: 0.6949 | C78: 0.6983 | D78: 0.6856 | E78: 0.6644 | F78: 0.6545 | G78: 0.6496 | H78: 0.6379 | I78: 0.6147877421 | J78: 0.5954347385 | K78: 0.6011110151 | L78: 0.5847026873 | M78: 0.559212367 | N78: 0
A79: % of Standard Variable Rate Mortgages | B79: 0.0064 | C79: 0.0157 | D79: 0.0267 | E79: 0.0513 | F79: 0.1522 | G79: 0.1873 | H79: 0.3354 | I79: 0.3966028278 | J79: 0.4043288317 | K79: 0.405389374 | L79: 0.4311935678 | M79: 0.4388558809 | N79: 0
A80: % of Fixed Rate Mortgages (reverting to SVR) | B80: 0.2382 | C80: 0.1918 | D80: 0.1799 | E80: 0.1603 | F80: 0.0732 | G80: 0.0739 | H80: 0.0186 | I80: 0.01909746561 | J80: 0.01975389028 | K80: 0.02045417606 | L80: 0 | M80: 0 | N80: 0
A81: % of Fixed Rate Mortgages (reverting to Libor plus a variable margin) | B81: 0.0729 | C81: 0.0913 | D81: 0.0915 | E81: 0.0924 | F81: 0.0937 | G81: 0.0946 | H81: 0.0996 | I81: 0.03563928714 | J81: 0.014001899 | K81: 0 | L81: 0 | M81: 0 | N81: 0
A82: % of Base Rate Mortgages | B82: 0 | C82: 0 | D82: 0 | E82: 0 | F82: 0 | G82: 0 | H82: 0 | I82: 0 | J82: 0 | K82: 0 | L82: 0 | M82: 0 | N82: 0
A83: % of Libor Linked Mortgages (reverting to SVR) | B83: 0.3792 | C83: 0.3231 | D83: 0.3238 | E83: 0.3188 | F83: 0.3031 | G83: 0.2663 | H83: 0.1503 | I83: 0.08165713917 | J83: 0.07649345634 | K83: 0.0768328562 | L83: 0.08015670065 | M83: 0.07846046559 | N83: 0
A84: % of Libor Linked Mortgages (reverting to Libor plus a variable margin) | B84: 0.3034 | C84: 0.3782 | D84: 0.3781 | E84: 0.3772 | F84: 0.3779 | G84: 0.378 | H84: 0.385 | I84: 0.3505533973 | J84: 0.2185450264 | K84: 0.119425171 | L84: 0.1123381778 | M84: 0.1138905366 | N84: 0
A85: % of Libor Linked Mortgages plus a Variable Margin | B85: 0 | C85: 0 | D85: 0 | E85: 0 | F85: 0 | G85: 0 | H85: 0.0111 | I85: 0.116449883 | J85: 0.2668768963 | K85: 0.3778984228 | L85: 0.3763115538 | M85: 0.368793117 | N85: 0
A86: Weighted Average Loan Size | B86: 169938.18 | C86: 169726.09 | D86: 169933.12 | E86: 170363.86 | F86: 170505.25 | G86: 170593.6 | H86: 167002.19 | I86: 166900.3531 | J86: 167290.7679 | K86: 167220.0244 | L86: 167243.0021 | M86: 167952.0552 | N86: 0
A87: Weighted Average Interest Rate | B87: 0.04805 | C87: 0.04787 | D87: 0.04785 | E87: 0.04791 | F87: 0.04833 | G87: 0.04864 | H87: 0.04946 | I87: 0.04994719983 | J87: 0.05069558285 | K87: 0.05127464211 | L87: 0.05123090823 | M87: 0.05123343131 | N87: 0
A88: Weighted Average Maturity Date (years) | B88: 19.2 | C88: 19.24 | D88: 18.99 | E88: 18.76 | F88: 18.52 | G88: 18.31 | H88: 18.09 | I88: 17.85120701 | J88: 17.58763478 | K88: 17.37184936 | L88: 17.05232597 | M88: 16.7119459 | N88: 0
A89: Weighted Average Seasoning (months) | B89: 7.16 | C89: 8.95 | D89: 11.94 | E89: 14.96 | F89: 17.98 | G89: 20.92 | H89: 23.72 | I89: 26.69557026 | J89: 29.72445826 | K89: 32.7368822 | L89: 35.85319952 | M89: 38.97593933 | N89: 0
A90: % of Interest Only Mortgages (optional switching to repayment) | B90: 0.33 | C90: 0.4173 | D90: 0.4168 | E90: 0.417 | F90: 0.4191 | G90: 0.4198 | H90: 0.4406 | I90: 0.4499971897 | J90: 0.4475453118 | K90: 0.4465452701 | L90: 0.4364085252 | M90: 0.4287461057 | N90: 0
A91: % of Interest Only Mortgages (mandatory switching to repayment) | B91: 0.5515 | C91: 0.47 | D91: 0.4702 | E91: 0.4701 | F91: 0.4697 | G91: 0.4694 | H91: 0.4436 | I91: 0.4367559875 | J91: 0.4278160709 | K91: 0.425113871 | L91: 0.4345610504 | M91: 0.4381325614 | N91: 0
A92: % of Interest Only Mortgages | B92: 0.0487 | C92: 0.0415 | D92: 0.0416 | E92: 0.0421 | F92: 0.0413 | G92: 0.0408 | H92: 0.0409 | I92: 0.03780359366 | J92: 0.03580647244 | K92: 0.03482397147 | L92: 0.0363478342 | M92: 0.03779209706 | N92: 0
A93: % of Repayment Mortgages | B93: 0.0697 | C93: 0.0712 | D93: 0.0714 | E93: 0.0709 | F93: 0.07 | G93: 0.07 | H93: 0.0749 | I93: 0.07544322912 | J93: 0.08883214486 | K93: 0.09351688744 | L93: 0.09268259016 | M93: 0.09532923585 | N93: 0
A94: % of Mortgages in London | B94: 0.1644 | C94: 0.1612 | D94: 0.1614 | E94: 0.1616 | F94: 0.16 | G94: 0.1597 | H94: 0.145 | I94: 0.1437339921 | J94: 0.1424039353 | K94: 0.1418369318 | L94: 0.1431434722 | M94: 0.1449434731 | N94: 0
A95: % of Mortgages in the South East | B95: 0.2733 | C95: 0.2756 | D95: 0.2759 | E95: 0.2751 | F95: 0.2752 | G95: 0.2731 | H95: 0.2637 | I95: 0.2608467434 | J95: 0.2599569541 | K95: 0.2544504 | L95: 0.259671108 | M95: 0.2516960385 | N95: 0
A96: % of Owner Occupied Mortgages | B96: 0 | C96: 0 | D96: 0 | E96: 0 | F96: 0 | G96: 0 | H96: 0 | I96: 0 | J96: 0 | K96: 0 | L96: 0 | M96: 0 | N96: 0
A97: % of Investment Home Loans - Professional Landlords | B97: 0.7736 | C97: 0.7628 | D97: 0.7639 | E97: 0.7649 | F97: 0.7659 | G97: 0.7666 | H97: 0.7693 | I97: 0.7731753971 | J97: 0.7776981521 | K97: 0.7831431474 | L97: 0.7879643421 | M97: 0.7969893435 | N97: 0
A98: % of Investment Home Loans - Emerging Professional Landlords | B98: 0.2264 | C98: 0.2372 | D98: 0.2361 | E98: 0.2351 | F98: 0.2341 | G98: 0.2334 | H98: 0.2307 | I98: 0.2268246029 | J98: 0.2223018479 | K98: 0.2168568526 | L98: 0.2120356579 | M98: 0.2030106565 | N98: 0
A99: Weighted Average Interest Coverage Ratio (calculated at the origination date) | B99: 1.704692378 | C99: 1.704808 | D99: 1.706923784 | E99: 1.707923784 | F99: 1.706923784 | G99: 1.706836718 | H99: 1.709237837 | I99: 1.708657289 | J99: 1.710620562 | K99: 1.711267802 | L99: 1.708838561 | M99: 1.705689193 | N99: 0
A100: Number of Properties in Possession | B100: 0 | C100: 0 | D100: 0 | E100: 0 | F100: 0 | G100: 0 | H100: 0 | I100: 0 | J100: 0 | K100: 0 | L100: 0 | M100: 0 | N100: 0
A101: Appointment of a Receiver of Rent | B101: 0 | C101: 0 | D101: 0 | E101: 0 | F101: 0 | G101: 0 | H101: 0 | I101: 0 | J101: 0 | K101: 0 | L101: 0 | M101: 0 | N101: 0
A102: PML Quarterly Losses | B102: 0 | C102: 0 | D102: 0 | E102: 0 | F102: 0 | G102: 0 | H102: 0 | I102: 0 | J102: 0 | K102: 0 | L102: 0 | M102: 0 | N102: 0
A103: Arrears excluding Receiver of Rent and Possession Cases
A104: Performing Loans | B104: 1 | C104: 1 | D104: 1 | E104: 1 | F104: 1 | G104: 1 | H104: 1 | I104: 1 | J104: 1 | K104: 1 | L104: 1 | M104: 1 | N104: 0
A105: >1 to 2 months arrears | B105: 0 | C105: 0 | D105: 0 | E105: 0 | F105: 0 | G105: 0 | H105: 0 | I105: 0 | J105: 0 | K105: 0 | L105: 0 | M105: 0 | N105: 0
A106: >2 to 3 months arrears | B106: 0 | C106: 0 | D106: 0 | E106: 0 | F106: 0 | G106: 0 | H106: 0 | I106: 0 | J106: 0 | K106: 0 | L106: 0 | M106: 0 | N106: 0
A107: >3 months arrears | B107: 0 | C107: 0 | D107: 0 | E107: 0 | F107: 0 | G107: 0 | H107: 0 | I107: 0 | J107: 0 | K107: 0 | L107: 0 | M107: 0 | N107: 0
A108: Total | B108: =SUM(B104:B107) -> 1 | C108: 1 | D108: 1 | E108: 1 | F108: 1 | G108: 1 | H108: 1 | I108: 1 | J108: 1 | K108: 1 | L108: 1 | M108: 1 | N108: 0
A110: Underlying Assets - Paragon Mortgages 2010 Mortgage Trust Originated Assets | B110: 2012-12-31 | C110: 2013-03-28 | D110: 2013-06-28 | E110: 2013-09-30 | F110: 2013-12-31 | G110: 2014-03-31 | H110: 2014-06-30 | I110: 2014-09-30 | J110: 2014-12-31 | K110: 2015-03-31 | L110: =+L75 -> 2015-06-30 | M110: =+M75 -> 2015-09-30 | N110: 2015-12-31
A111: Weighted Average LTV | B111: 0.6913 | C111: 0.696 | D111: 0.6961 | E111: 0.6972 | F111: 0.6965 | G111: 0.6955 | H111: 0.6987 | I111: 0.6964254099 | J111: 0.6973430007 | K111: 0.6952445627 | L111: 0.6933794064 | M111: 0.6867410615 | N111: 0
A112: Weighted Average Nationwide Indexed LTV | B112: 0.6873 | C112: 0.6945 | D112: 0.6946 | E112: 0.662 | F112: 0.6608 | G112: 0.6452 | H112: 0.6354 | I112: 0.5952862055 | J112: 0.598840701 | K112: 0.5973878542 | L112: 0.5963918209 | M112: 0.5803781923 | N112: 0
A113: Weighted Average Halifax Indexed LTV | B113: 0.6914 | C113: 0.6985 | D113: 0.6857 | E113: 0.6661 | F113: 0.6523 | G113: 0.6453 | H113: 0.6335 | I113: 0.6083791571 | J113: 0.5885277815 | K113: 0.5914421722 | L113: 0.5759364966 | M113: 0.5492664062 | N113: 0
A114: % of Standard Variable Rate Mortgages | B114: 0 | C114: 0 | D114: 0.0282 | E114: 0.0235 | F114: 0.0554 | G114: 0.1509 | H114: 0.3111 | I114: 0.3750305444 | J114: 0.3845305235 | K114: 0.3938005819 | L114: 0.4174773519 | M114: 0.4346333949 | N114: 0
A115: % of Fixed Rate Mortgages (reverting to SVR) | B115: 0.0874 | C115: 0.0696 | D115: 0.0561 | E115: 0.0482 | F115: 0.0386 | G115: 0.0394 | H115: 0.0033 | I115: 0.003681778153 | J115: 0.004096792939 | K115: 0.004514139704 | L115: 0 | M115: 0 | N115: 0
A116: % of Fixed Rate Mortgages (reverting to Libor plus a variable margin) | B116: 0.0594 | C116: 0.0924 | D116: 0.0907 | E116: 0.0925 | F116: 0.0927 | G116: 0.0924 | H116: 0.1005 | I116: 0.05680450781 | J116: 0.04928003614 | K116: 0.04925792604 | L116: 0 | M116: 0 | N116: 0
A117: % of Base Rate Mortgages | B117: 0 | C117: 0 | D117: 0 | E117: 0 | F117: 0 | G117: 0 | H117: 0 | I117: 0 | J117: 0 | K117: 0 | L117: 0 | M117: 0 | N117: 0
A118: % of Libor Linked Mortgages (reverting to SVR) | B118: 0.4864 | C118: 0.3844 | D118: 0.37 | E118: 0.3767 | F118: 0.3558 | G118: 0.2607 | H118: 0.0948 | I118: 0.003616000745 | J118: 0 | K118: 0 | L118: 0 | M118: 0 | N118: 0
A119: % of Libor Linked Mortgages (reverting to Libor plus a variable margin) | B119: 0.3668 | C119: 0.4536 | D119: 0.4549 | E119: 0.4592 | F119: 0.4575 | G119: 0.4566 | H119: 0.4868 | I119: 0.4026028685 | J119: 0.1619461691 | K119: 0.0486898906 | L119: 0 | M119: 0 | N119: 0
A120: % of Libor Linked Mortgages plus a Variable Margin | B120: 0 | C120: 0 | D120: 0 | E120: 0 | F120: 0 | G120: 0 | H120: 0.0035 | I120: 0.1582643004 | J120: 0.4001464784 | K120: 0.5037374618 | L120: 0.5825226481 | M120: 0.5653666051 | N120: 0
A121: Weighted Average Loan Size | B121: 159021.92 | C121: 153562.75 | D121: 153024.55 | E121: 151268.22 | F121: 151377.88 | G121: 151328.46 | H121: 147870.4 | I121: 145465.9973 | J121: 140119.3926 | K121: 141642.1382 | L121: 144873.7822 | M121: 137660.0573 | N121: 0
A122: Weighted Average Interest Rate | B122: 0.04277 | C122: 0.04243 | D122: 0.04293 | E122: 0.0428 | F122: 0.04321 | G122: 0.0448 | H122: 0.04681 | I122: 0.04848304899 | J122: 0.05060256593 | K122: 0.0515087789 | L122: 0.05327158619 | M122: 0.05330422727 | N122: 0
A123: Weighted Average Maturity Date (years) | B123: 18.79 | C123: 18.61 | D123: 18.41 | E123: 18.13 | F123: 17.89 | G123: 17.65 | H123: 17.08 | I123: 16.76615881 | J123: 16.54739378 | K123: 16.13122489 | L123: 15.89293423 | M123: 15.57687036 | N123: 0
A124: Weighted Average Seasoning (months) | B124: 6.9 | C124: 8.26 | D124: 11.26 | E124: 14.06 | F124: 17.09 | G124: 20.05 | H124: 22.81 | I124: 25.65114184 | J124: 28.70076506 | K124: 31.72445904 | L124: 34.96424907 | M124: 38.16317619 | N124: 0
A125: % of Interest Only Mortgages (optional switching to repayment) | B125: 0.3962 | C125: 0.5053 | D125: 0.5049 | E125: 0.5088 | F125: 0.5075 | G125: 0.5058 | H125: 0.5442 | I125: 0.576651901 | J125: 0.5695112885 | K125: 0.5559687131 | L125: 0.5402974644 | M125: 0.5152758565 | N125: 0
A126: % of Interest Only Mortgages (mandatory switching to repayment) | B126: 0.4178 | C126: 0.3326 | D126: 0.3318 | E126: 0.3231 | F126: 0.3241 | G126: 0.324 | H126: 0.2891 | I126: 0.2782530551 | J126: 0.2834008878 | K126: 0.292990181 | L126: 0.3068590182 | M126: 0.3108978762 | N126: 0
A127: % of Interest Only Mortgages | B127: 0.1408 | C127: 0.1094 | D127: 0.1104 | E127: 0.1131 | F127: 0.1136 | G127: 0.1147 | H127: 0.1082 | I127: 0.09097568544 | J127: 0.0907687562 | K127: 0.08952645679 | L127: 0.09345610911 | M127: 0.1118442473 | N127: 0
A128: % of Repayment Mortgages | B128: 0.0453 | C128: 0.0527 | D128: 0.0528 | E128: 0.055 | F128: 0.0548 | G128: 0.0554 | H128: 0.0585 | I128: 0.0541193584 | J128: 0.05631906756 | K128: 0.06151464909 | L128: 0.05938740823 | M128: 0.06198202005 | N128: 0
A129: % of Mortgages in London | B129: 0.241 | C129: 0.2416 | D129: 0.2439 | E129: 0.2489 | F129: 0.2496 | G129: 0.2444 | H129: 0.2372 | I129: 0.2228776897 | J129: 0.197427984 | K129: 0.1988129066 | L129: 0.2035647472 | M129: 0.1597747256 | N129: 0
A130: % of Mortgages in the South East | B130: 0.3034 | C130: 0.3028 | D130: 0.3059 | E130: 0.2926 | F130: 0.2936 | G130: 0.2953 | H130: 0.2859 | I130: 0.2905159034 | J130: 0.2877633496 | K130: 0.2934902087 | L130: 0.2896349018 | M130: 0.3013167274 | N130: 0
A131: % of Owner Occupied Mortgages | B131: 0 | C131: 0 | D131: 0 | E131: 0 | F131: 0 | G131: 0 | H131: 0 | I131: 0 | J131: 0 | K131: 0 | L131: 0 | M131: 0 | N131: 0
A132: % of Investment Home Loans - Professional Landlords | B132: 0.4128 | C132: 0.406 | D132: 0.4058 | E132: 0.4129 | F132: 0.4141 | G132: 0.4166 | H132: 0.432 | I132: 0.4433384423 | J132: 0.4434145985 | K132: 0.4486656974 | L132: 0.4678193782 | M132: 0.4485740536 | N132: 0
A133: % of Investment Home Loans - Emerging Professional Landlords | B133: 0.5872 | C133: 0.594 | D133: 0.5942 | E133: 0.5871 | F133: 0.5859 | G133: 0.5834 | H133: 0.568 | I133: 0.5566615577 | J133: 0.5565854015 | K133: 0.5513343026 | L133: 0.5321806218 | M133: 0.5514259464 | N133: 0
A134: Weighted Average Interest Coverage Ratio (calculated at the origination date) | B134: 1.514719121 | C134: 1.514571912 | D134: 1.515719121 | E134: 1.515719121 | F134: 1.516719121 | G134: 1.518719121 | H134: 1.517191213 | I134: 1.515904563 | J134: 1.532837148 | K134: 1.539873445 | L134: 1.531984873 | M134: 1.508749908 | N134: 0
A135: Number of Properties in Possession | B135: 0 | C135: 0 | D135: 0 | E135: 0 | F135: 0 | G135: 0 | H135: 0 | I135: 0 | J135: 0 | K135: 0 | L135: 0 | M135: 0 | N135: 0
A136: Appointment of a Receiver of Rent | B136: 0 | C136: 0 | D136: 0 | E136: 0 | F136: 0 | G136: 0 | H136: 0 | I136: 0 | J136: 0 | K136: 0 | L136: 0 | M136: 0 | N136: 0
A137: MTL Quarterly Losses | B137: 0 | C137: 0 | D137: 0 | E137: 0 | F137: 0 | G137: 0 | H137: 0 | I137: 0 | J137: 0 | K137: 0 | L137: 0 | M137: 0 | N137: 0
A138: Arrears excluding Receiver of Rent and Possession Cases
A139: Performing Loans | B139: 1 | C139: 1 | D139: 1 | E139: 1 | F139: 1 | G139: 1 | H139: 1 | I139: 1 | J139: 1 | K139: 1 | L139: 1 | M139: 1 | N139: 0
A140: >1 to 2 months arrears | B140: 0 | C140: 0 | D140: 0 | E140: 0 | F140: 0 | G140: 0 | H140: 0 | I140: 0 | J140: 0 | K140: 0 | L140: 0 | M140: 0 | N140: 0
A141: >2 to 3 months arrears | B141: 0 | C141: 0 | D141: 0 | E141: 0 | F141: 0 | G141: 0 | H141: 0 | I141: 0 | J141: 0 | K141: 0 | L141: 0 | M141: 0 | N141: 0
A142: >3 months arrears | B142: 0 | C142: 0 | D142: 0 | E142: 0 | F142: 0 | G142: 0 | H142: 0 | I142: 0 | J142: 0 | K142: 0 | L142: 0 | M142: 0 | N142: 0
A143: Total | B143: =SUM(B139:B142) -> 1 | C143: 1 | D143: 1 | E143: 1 | F143: 1 | G143: 1 | H143: 1 | I143: 1 | J143: 1 | K143: 1 | L143: 1 | M143: 1 | N143: 0

Sheet Graphs
K2: PARAGON MORTGAGES (NO.17) PLC
